Cogmind - Beta 14 @@@ ROGUE MODE // 2024.12.24 @ 22:32:48 Player: yua241 Result: Destroyed by G-47 Trooper with Particle Gun Performance ------------- Evolutions (1) 500 Regions Visited (3) 600 Robots Destroyed (25) 125 Value Destroyed (698) 698 Prototype IDs (0) 0 Alien Tech Used (0) 0 Bonus (25) 25 TOTAL SCORE: 1948 Bonus ------- High Alert Combat Kills 25 Cogmind --------- Core Integrity 0/400 Matter 290/300 Energy 250/250 System Corruption 5% Temperature Cool (15) Movement Core (250) Ox4 Location -9/Materials Parts ------- > --- POWER (1) -------- Ion Engine > --- PROPULSION (3) --- (None) > --- UTILITY (3) ------ Medium Storage Unit Signal Interpreter > --- WEAPON (2) ------- (None) > --- INVENTORY (10) --- Light Ion Engine Light Ion Engine Medium Matter Pod (17) Medium Matter Pod (100) Peak State ------------ > --- POWER ------------ Ion Engine > --- PROPULSION ------- Aluminum Leg Aluminum Leg Aluminum Leg > --- UTILITY ---------- Small Storage Unit Medium Matter Pod Sensor Array > --- WEAPON ----------- Light Assault Rifle Light Assault Rifle > --- INVENTORY -------- Ion Engine Light Ion Engine Light Ion Engine Wheel Medium Storage Unit Grenade Launcher [Rating: 9] Favorites ----------- Power Ion Engine Engine Ion Engine Propulsion Aluminum Leg Leg Aluminum Leg Utility Small Storage Unit Device Sensor Array Storage Small Storage Unit Processor Signal Interpreter Weapon Light Assault Rifle Energy Gun Small Laser Ballistic Gun Light Assault Rifle Launcher Grenade Launcher Build | -11 -10 -10 -9 ------- Run | Yrd Mat Min Mat Slots Evolved 2 | . . . 2 Power . | . . . . Propulsion 1 | . . . 1 Utility 1 | . . . 1 Weapon . | . . . . Parts Attached 16 | 6 2 . 8 Power 2 | 1 . . 1 Engine 2 | 1 . . 1 Core . | . . . . Reactor . | . . . . Propulsion 4 | 2 . . 2 Treads . | . . . . Leg 4 | 2 . . 2 Wheel . | . . . . Hover . | . . . . Flight . | . . . . Utility 5 | 1 1 . 3 Device 1 | . . . 1 Storage 3 | 1 1 . 1 Processor 1 | . . . 1 Hackware . | . . . . Protection . | . . . . Artifact . | . . . . Weapon 5 | 2 1 . 2 Energy Gun 1 | . . . 1 Energy Cannon . | . . . . Ballistic Gun 3 | 2 1 . . Ballistic Cannon . | . . . . Launcher 1 | . . . 1 Special Weapon . | . . . . Impact Weapon . | . . . . Slashing Weapon . | . . . . Piercing Weapon . | . . . . Special Melee Weapon . | . . . . Unidentified Prototypes . | . . . . Parts Lost 11 | . 1 . 10 Power 1 | . . . 1 Propulsion 4 | . . . 4 Utility 1 | . . . 1 Weapon 5 | . 1 . 4 Highest Loss Streak 6 | . 1 . 6 To Critical Strikes . | . . . . Average Slot Usage (%) 89 | . 95 100 80 Engine 12 | . 14 14 9 Leg 26 | . 28 28 23 Device 3 | . . . 7 Storage 21 | . 24 28 15 Processor 2 | . . . 5 Ballistic Gun 21 | . 27 28 15 Peak Build Rating 9 | 6 7 7 9 Average Rating 6 | 3 6 7 7 On Entrance 5 | . 6 7 7 Naked Turns . | . . . . Heaviest Build 19 | 13 15 14 19 Greatest Support 30 | 20 20 20 30 Greatest Overweight (x) 4 | 1 . . 4 Average Overweight (x) . | . . . . Largest Inventory Capacity 10 | 8 8 8 10 Average Capacity 8 | 7 8 8 9 Most Carried 8 | 5 8 8 8 Average Carried 5 | 3 4 7 5 Final Capacity 10 | 8 8 8 10 Final Carried 8 | 3 8 8 4 Class Distribution -------------------- 100% | Mutant Dominant Class ---------------- Mutant | -10/Materials Mutant | -10/Mines Mutant | -9/Materials Resources | -11 -10 -10 -9 ----------- Run | Yrd Mat Min Mat Matter Collected 574 | 224 143 38 169 Remotely . | . . . . Salvage Created 645 | . 196 45 404 Parts 42 | . 19 1 22 Haulers Intercepted 1 | . 1 . . Recyclers Shooed . | . . . . Parts Field Recycled . | . . . . Retrieved Matter . | . . . . Parts Self-Destructed . | . . . . Prevented . | . . . . Kills | -11 -10 -10 -9 ------- Run | Yrd Mat Min Mat Combat Hostiles Destroyed 19 | . 5 3 11 Guns 11 | . 1 3 7 AOE 8 | . 4 . 4 Classes Destroyed 10 | . 6 . 4 Worker 1 | . 1 . . Builder 1 | . . . 1 Tunneler 1 | . 1 . . Hauler 1 | . 1 . . Recycler 1 | . 1 . . Mechanic 1 | . . . 1 Swarmer 7 | . 3 3 1 Grunt 10 | . 2 . 8 Brawler 1 | . . . 1 Sentry 1 | . . . 1 Best Kill Streak 9 | . 9 3 4 Combat Bots Only 5 | . 5 3 3 Max Kills in Single Turn 8 | . 8 1 1 Gunslinging . | . . . . Exploded 4 | . 4 . 1 Melee . | . . . . Uniques/NPCs Destroyed . | . . . . Combat | -11 -10 -10 -9 -------- Run | Yrd Mat Min Mat Hostile Shots Fired 117 | . 30 6 81 Missed 32 | . 9 2 21 Damage Taken 1405 | . 332 34 1039 Core 526 | . 105 9 412 Absorbed by Shields . | . . . . Core Remaining (%) 77 | 100 . 54 . Volleys Fired 65 | . 5 5 55 Largest 2 | . 2 2 2 Hottest 70 | . 40 40 70 Shots Fired 93 | . 10 10 73 Gun 86 | . 10 10 66 Cannon . | . . . . Launcher 7 | . . . 7 Special . | . . . . Kinetic 82 | . 10 10 62 Thermal 4 | . . . 4 Explosive 7 | . . . 7 Electromagnetic . | . . . . Robot Hit Streak 13 | . 2 3 13 Robot Miss Streak 3 | . 3 2 2 Penetration Max . | . . . . Secondary Targets . | . . . . Shots Hit Robots 61 | . 4 5 52 Core Hits 49 | . 11 3 35 Critical Kills . | . . . . Critical Parts Destroyed . | . . . . Critical Strikes . | . . . . Melee Attacks . | . . . . Impact . | . . . . Slashing . | . . . . Piercing . | . . . . Sneak Attacks . | . . . . Combat Hostiles . | . . . . Follow-up Attacks . | . . . . Damage Inflicted 1702 | . 729 47 926 Guns 477 | . 62 47 368 Cannons . | . . . . Explosions 1225 | . 667 . 558 Melee . | . . . . Ramming . | . . . . Kinetic 456 | . 62 47 347 Thermal 281 | . 260 . 21 Explosive 883 | . 407 . 476 Electromagnetic 82 | . . . 82 Impact . | . . . . Slashing . | . . . . Piercing . | . . . . Highest Corruption 5 | . . . 5 Average Corruption 5 | . . . 5 Corruption Purged . | . . . . Corruption Blocked . | . . . . Effects 1 | . . . 1 Data Loss (major) 1 | . . . 1 Overload Shots . | . . . . Overflow Damage 54 | . 24 . 30 Projectiles . | . . . . Explosions 54 | . 24 . 30 Melee . | . . . . Knockbacks . | . . . . Impact . | . . . . Kinetic . | . . . . Secondary . | . . . . Self-Inflicted Damage 369 | . 149 . 220 Shots 9 | . 2 . 7 Rammed . | . . . . Targets Rammed . | . . . . Kicked . | . . . . Crushed . | . . . . Highest Temperature 40 | . 15 . 40 Average Temperature 9 | . 7 . 9 Received Heat Transfer 396 | . 39 . 357 Siege Activations . | . . . . Robots Corrupted 1 | . . . 1 Combat Hostiles . | . . . . Parts Fried 5 | . . . 5 Impact Corruptions . | . . . . Robots Melted . | . . . . Combat Hostiles . | . . . . Parts Melted . | . . . . Heat Transferred 250 | . 200 . 50 Parts Sabotaged . | . . . . Parts Stolen . | . . . . Parts Stripped . | . . . . Power Chain Reactions . | . . . . Alert | -11 -10 -10 -9 ------- Run | Yrd Mat Min Mat Peak Influence 471 | . 366 212 471 Initial 142 | . . 142 82 Average 180 | . 154 155 278 Maximum Alert Level 2 | . 1 1 2 Low Security (%) 57 | 100 56 83 30 Level 1 34 | . 43 16 50 Level 2 7 | . . . 19 Level 3 . | . . . . Level 4 . | . . . . Level 5 . | . . . . High Security . | . . . . Max Security . | . . . . Squads Dispatched 3 | . . . 3 Investigation 1 | . . . 1 Extermination . | . . . . Reinforcement 2 | . . . 2 Assault . | . . . . Garrison . | . . . . Intercept . | . . . . Searches Triggered . | . . . . Construction Impeded . | . . . . Haulers Reinforced . | . . . . Active Scanning Responses . | . . . . Cargo Convoy Interrupts . | . . . . Stealth | -11 -10 -10 -9 --------- Run | Yrd Mat Min Mat Distress Signals 1 | . . . 1 Communications Jammed . | . . . . Distress Signals . | . . . . Times Spotted 32 | . 7 3 22 Peak Tracking Total 7 | . 7 3 5 Tactical Retreats 1 | . . . 1 Traps | -11 -10 -10 -9 ------- Run | Yrd Mat Min Mat Traps Triggered . | . . . . Indirectly . | . . . . Trap Hack Attempts . | . . . . Triggered . | . . . . Disarmed . | . . . . Reprogrammed . | . . . . Reused . | . . . . Traps Extracted . | . . . . Installed . | . . . . Triggered . | . . . . Machines | -11 -10 -10 -9 ---------- Run | Yrd Mat Min Mat Machines Disabled 16 | . 11 . 5 Max in Single Turn 11 | . 11 . 4 Machines Repaired . | . . . . Machines Dismantled . | . . . . Machines Sabotaged . | . . . . Overloaded Fab Kills . | . . . . Hacking | -11 -10 -10 -9 --------- Run | Yrd Mat Min Mat Machines Accessed 4 | . 2 1 1 Terminals 4 | . 2 1 1 Fabricators . | . . . . Repair Stations . | . . . . Recycling Units . | . . . . Scanalyzers . | . . . . Garrison Access . | . . . . Total Hacks 13 | . 7 2 4 Successful 6 | . 3 . 3 Failed 7 | . 4 2 1 Catastrophic 3 | . 1 1 1 Database Lockouts . | . . . . Manual 2 | . . 2 . Terminals 13 | . 7 2 4 Fabricators . | . . . . Repair Stations . | . . . . Recycling Units . | . . . . Scanalyzers . | . . . . Garrison Access . | . . . . Terminal Hacks 6 | . 3 . 3 Alert Level 2 | . . . 2 Locate Traps 1 | . 1 . . Security Status 1 | . 1 . . Transport Status 1 | . . . 1 Hauler Manifests 1 | . 1 . . Fabricator Hacks . | . . . . Repair Station Hacks . | . . . . Recycling Unit Hacks . | . . . . Scanalyzer . | . . . . Garrison Access Hacks . | . . . . Unauthorized Hacks . | . . . . Terminals . | . . . . Fabricators . | . . . . Repair Stations . | . . . . Recycling Units . | . . . . Scanalyzers . | . . . . Garrison Access . | . . . . Data Cores Recovered . | . . . . Used . | . . . . Hacking Detections 4 | . 2 1 1 Full Trace Events 2 | . 1 . 1 Feedback Events . | . . . . Feedback Blocked . | . . . . Robot Schematics Acquired . | . . . . Robots Built . | . . . . Authchips . | . . . . Time . | . . . . Total Robot Build Rating . | . . . . Part Schematics Acquired . | . . . . Parts Built . | . . . . Authchips . | . . . . Time . | . . . . Total Part Build Rating . | . . . . Parts Repaired . | . . . . Time . | . . . . Parts Recycled . | . . . . Recycled Matter . | . . . . Retrieved Matter . | . . . . Retrieved Components . | . . . . Parts Scanalyzed . | . . . . Part Schematics Acquired . | . . . . Parts Damaged . | . . . . Bothacking | -11 -10 -10 -9 ------------ Run | Yrd Mat Min Mat Used RIF Installer . | . . . . Robots Hacked . | . . . . Non-combat . | . . . . Combat . | . . . . Robot Hacks Applied . | . . . . Relay Couplers Released . | . . . . Fabnet Peak Effective % . | . . . . Robots Rewired . | . . . . Allies Hacked . | . . . . Hacks Repelled . | . . . . Allies | -11 -10 -10 -9 -------- Run | Yrd Mat Min Mat Total Allies . | . . . . Largest Group . | . . . . Highest-Rated Group . | . . . . Highest-Rated Ally . | . . . . Total Orders . | . . . . Ally Attacks . | . . . . Total Damage . | . . . . Kills . | . . . . Allies Corrupted . | . . . . Allies Melted . | . . . . Intel | -11 -10 -10 -9 ------- Run | Yrd Mat Min Mat Robot Analysis Total . | . . . . Derelict Logs Recovered 1 | . . 1 . Drone Launches . | . . . . Drone Recoveries . | . . . . Exploration | -11 -10 -10 -9 ------------- Run | Yrd Mat Min Mat Turns Passed 1035 | 147 293 197 398 Spaces Moved 653 | 120 225 148 160 Core 37 | 29 . . 8 Treads . | . . . . Legs 616 | 91 225 148 152 Wheels . | . . . . Hover . | . . . . Flight . | . . . . Fastest Speed 50 | 50 120 120 120 Average Speed 122 | 108 120 120 138 Slowest Speed 250 | 120 120 120 250 Overloaded Moves . | . . . . Propulsion Burnouts . | . . . . Robots Hopped . | . . . . Cave-ins Triggered . | . . . . Exploration Rate (%) 22 | 5 29 38 19 Regions Visited 3 Branch Regions 1 Pre-discovered Areas 1 | . . 1 . Known Exits Taken . | . . . . Unknown Exits Taken 3 | 1 1 1 . Scrap Searched . | . . . . Spaces Dug . | . . . . Terrain Destroyed 71 | . 56 . 15 Melee . | . . . . Projectile . | . . . . AOE 71 | . 56 . 15 Terrain Rammed . | . . . . Walls Destroyed . | . . . . Machines Disabled . | . . . . Actions | -11 -10 -10 -9 --------- Run | Yrd Mat Min Mat Total 814 | 137 239 160 278 Wait 56 | 3 1 6 46 Move 650 | 119 224 147 160 Hop . | . . . . Pick Up 23 | 9 7 1 6 Fast Attach . | . . . . Attach 16 | 6 2 . 8 Detach 1 | . . . 1 Swap . | . . . . Drop 3 | . . 1 2 Fire 65 | . 5 5 55 Melee . | . . . . Ram . | . . . . Kick . | . . . . Crush . | . . . . Escape Stasis . | . . . . Rewire . | . . . . Trap . | . . . . Miscellaneous . | . . . . Route ------- -11/Scrapyard -10/Materials -10/Mines -9/Materials (discovered 1 exit: [*Min]) History --------- Turn | Location | Event 49 | -11/Scrapyard | Discovered new exit (range 16) 148 | -11/Scrapyard | Entered Materials 173 | -10/Materials | Discovered new exit (range 16) 316 | -10/Materials | Build established: Mutant 441 | -10/Materials | Entered Mines 521 | -10/Mines | Met a Derelict bent on vengeance 593 | -10/Mines | Discovered new exit (range 6) 638 | -10/Mines | Entered Materials 638 | -9/Materials | Evolved 2 slots: Propulsion x1, Utility x1 849 | -9/Materials | Discovered new exit (range 13) 943 | -9/Materials | Lost 6 parts (1p3n1u1w) 960 | -9/Materials | Core integrity fell below 50% 1028 | -9/Materials | Core integrity fell below 20% 1036 | -9/Materials | Destroyed by G-47 Trooper with Particle Gun Last Messages --------------- 00981_ The unstable cave ceiling collapses. 01001_ System corrupted: Substantial component data lost. 01004_ Acquired 21 matter. 01016_ Acquired Med. Matter Pod. 01016_ U-05 Engineer lays Concrete. 01019_ Acquired 19 matter. 01020_ The unstable cave ceiling collapses. 01020_ U-05 Engineer lays Concrete. 01022_ Acquired 66 matter. 01023_ Imp. Aluminum Leg destroyed. 01023_ Critical hit (Burn: +37). [Achievement: Let's See Who's Tougher] 01024_ G-34 Mercenary destroyed. 01027_ Destroyed Ion Engine. 01027_ Sml. Laser destroyed. 01027_ Destroyed Sml. Laser. 01028_ Grenade Launcher destroyed. 01034_ R-06 Scavenger collects Sml. Laser. 01034_ U-05 Engineer lays Concrete. Map ----- +----------------------------------------------------+ | ???# #?????????????????????????????????????????? | | ???# #?????????????????????????????????????????? | | ???# #?????????????????????????????????????????? | | #### #########?????????????????????????????????? | | #?????????????????????????????????? | | #?????????????????????????????????? | | """ """ #?????????????????????????????????? | | ### """ """ #?????????????????????????????????? | | #"" """ """ #?????????????????????????????????? | | #"T #?????????????????????????????????? | | #"" #??????? ???????????????????????? | | ### """ """ #??????# r ???????????????????????? | | ??# """ """ ####??## #??????????????????????? | | ??# """ %" "" #??# ?????????????????????? | | ??# ! ""#??# "?????????????????????? | | ??# = R"#??# !?????????????????????? | | ??# """ """#??# < "?????????????????????? | | ??# """ ####??# |?????????????????????? | | ### """ #?????? "?????????????????????? | | #?????? ?????????????????????? | | %#??????# #??????????????????????? | | """ ########% #??????????????????????? | | ### """ T" ^ #??????????????????????? | | ??# """ "" % ##?????????????????????? | | ??# u r #?????????????????????? | | ??# %@ #?????????????????????? | | ??######### # # # g #########?????????????? | | ????????# % g ?????????? | | ????????# ! % ! ?????????? | | ????????# # % ?????????? | | ????????# " # ##+######### #?????????? | | ????????# """"""""" # #??????????????????????? | | ????????# """ """ # #??????????????????????? | | ????????############### #??????????????????????? | | ??????????????????????# #??????????????????????? | | ?????????????????????? ??????????????????????? | | ?????????????????????? ??????????????????????? | | ?????????????????????? #?????????????????????? | | ????????????????????? #?????????????????????? | | ?????????????????????# w #?????????????????????? | | ?????????????????????## ##?????????????????????? | | ??????????????????????? #??????????????????????? | | ??????????????????????? #??????????????????????? | | ??????????????????????? ???????????????????????? | | ?????????????????????????????????????????????????? | | ?????????????????????????????????????????????????? | | ?????????????????????????????????????????????????? | | ?????????????????????????????????????????????????? | | ?????????????????????????????????????????????????? | | ?????????????????????????????????????????????????? | +----------------------------------------------------+ Best States ------------- Heat Dissipation 28 Energy Generation 10 Energy Capacity 250 Matter Stores 400 Matter Capacity 400 Sight Range 16 Robot Scan Range 14 Terrain Scan Density 10 Evasion (%) 55 Item Schematics ----------------- None Robot Schematics ------------------ None Fabricated ------------ Nothing Alien Tech Used ----------------- None Achievements -------------- It Was An Accident, I Swear Let's See Who's Tougher Power Corrupts Challenges ------------ None Game ------ Seed BiometalInsulationChainsaw Manual? 0 Play Time 00:13:41 Cumulative 2.7 hours Start 2024.12.24 @ 22:03:13 End 2024.12.24 @ 22:32:48 Sessions 1 Manual Loads 0 Difficulty Rogue Special Mode None Game No. 8 Rogue 8 Adventurer 0 Explorer 0 Win Type - Total 0 Types 0/0/0/0/0/0/0/0/0 Lore% 1 Gallery% 5 Achievement% 7 Wizard Run 0 Options --------- Layout 2 ASCII 0 Keyboard 1 Movement Vi Keybinds 0 Fullscreen 2 Font 24/Swanston Map View 50x44 Zoom Use 0% Tactical HUD 1 Map Filters NONE Filters NONE Steam 1 RUN: f6e84903-8a69-4281-9526-439a32284d1a